Cogmind - Beta 14 @@@ ROGUE MODE // 2024.09.01 @ 16:33:06 Player: Buttons Result: Destroyed by DAS Turret with DAS Cannon Performance ------------- Evolutions (0) 0 Regions Visited (3) 600 Robots Destroyed (19) 95 Value Destroyed (332) 332 Prototype IDs (2) 40 Alien Tech Used (0) 0 Bonus (0) 0 TOTAL SCORE: 1067 Bonus ------- None Cogmind --------- Core Integrity 0/250 Matter 224/300 Energy 65/100 System Corruption 6% Temperature Cool (0) Movement Walking (260) Ox2 Location -10/Exiles Parts ------- > --- POWER (1) -------- (None) > --- PROPULSION (2) --- Aluminum Leg > --- UTILITY (2) ------ Large Storage Unit > --- WEAPON (2) ------- Mini Grenade Launcher > --- INVENTORY (15) --- Nuclear Core Aluminum Leg Heat Sink Small Storage Unit Structural Scanner Sensor Array Signal Interpreter Improved Terrain Scanner Seismic Detector Hacking Suite Improved Medium Laser Improved Medium Laser Assault Rifle Peak State ------------ > --- POWER ------------ Light Deuterium Engine > --- PROPULSION ------- Aluminum Leg Aluminum Leg > --- UTILITY ---------- Large Storage Unit Signal Interpreter > --- WEAPON ----------- Medium Laser Missile Launcher > --- INVENTORY -------- Nuclear Core Aluminum Leg Aluminum Leg Heat Sink Small Storage Unit Structural Scanner Sensor Array Signal Interpreter Improved Terrain Scanner Seismic Detector Hacking Suite Improved Medium Laser Improved Medium Laser Assault Rifle Mini Grenade Launcher [Rating: 13] Favorites ----------- Power Ion Engine Engine Ion Engine Propulsion Aluminum Leg Leg Aluminum Leg Utility Signal Interpreter Device Seismic Detector Storage Large Storage Unit Processor Signal Interpreter Weapon Medium Laser Energy Gun Medium Laser Ballistic Gun Assault Rifle Launcher Missile Launcher Build | -11 -10 -10 -10 ------- Run | Yrd Mat Min Exi Slots Evolved . | . . . . Power . | . . . . Propulsion . | . . . . Utility . | . . . . Weapon . | . . . . Parts Attached 16 | 8 4 1 3 Power 4 | 2 1 1 . Engine 4 | 2 1 1 . Core . | . . . . Reactor . | . . . . Propulsion 4 | 2 1 . 1 Treads . | . . . . Leg 4 | 2 1 . 1 Wheel . | . . . . Hover . | . . . . Flight . | . . . . Utility 4 | 2 2 . . Device 2 | 2 . . . Storage 1 | . 1 . . Processor 1 | . 1 . . Hackware . | . . . . Protection . | . . . . Artifact . | . . . . Weapon 4 | 2 . . 2 Energy Gun 1 | 1 . . . Energy Cannon . | . . . . Ballistic Gun 1 | 1 . . . Ballistic Cannon . | . . . . Launcher 2 | . . . 2 Special Weapon . | . . . . Impact Weapon . | . . . . Slashing Weapon . | . . . . Piercing Weapon . | . . . . Special Melee Weapon . | . . . . Unidentified Prototypes . | . . . . Parts Lost 6 | . . . 6 Power 1 | . . . 1 Propulsion 2 | . . . 2 Utility 1 | . . . 1 Weapon 2 | . . . 2 Highest Loss Streak 6 | . . . 6 To Critical Strikes 1 | . . . 1 Average Slot Usage (%) 99 | . 100 100 94 Engine 13 | . 14 14 13 Leg 27 | . 28 28 27 Device 5 | . 10 . . Storage 10 | . 7 14 14 Processor 11 | . 9 14 12 Energy Gun 13 | . 14 14 13 Ballistic Gun 13 | . 14 14 12 Peak Build Rating 13 | 9 9 11 13 Average Rating 9 | 6 8 10 10 On Entrance 7 | . 9 9 11 Naked Turns . | . . . . Heaviest Build 29 | 11 29 29 29 Greatest Support 20 | 20 20 20 20 Greatest Overweight (x) 2 | . 1 1 2 Average Overweight (x) . | . . 1 1 Largest Inventory Capacity 15 | 5 15 15 15 Average Capacity 11 | 5 10 15 15 Most Carried 15 | 4 15 15 15 Average Carried 10 | 2 8 14 14 Final Capacity 15 | 5 15 15 15 Final Carried 15 | 4 15 15 13 Class Distribution -------------------- 93% | Mutant 6% | Scavenger-Mutant Dominant Class ---------------- Mutant | -10/Materials Mutant | -10/Mines Mutant | -10/Exiles Resources | -11 -10 -10 -10 ----------- Run | Yrd Mat Min Exi Matter Collected 494 | 306 134 54 . Remotely . | . . . . Salvage Created 543 | 102 265 166 10 Parts 49 | 17 24 8 . Haulers Intercepted 2 | . 2 . . Recyclers Shooed 1 | . 1 . . Parts Field Recycled . | . . . . Retrieved Matter . | . . . . Parts Self-Destructed . | . . . . Prevented . | . . . . Kills | -11 -10 -10 -10 ------- Run | Yrd Mat Min Exi Combat Hostiles Destroyed 15 | 1 5 3 6 Guns 9 | 1 5 3 . AOE 6 | . . . 6 Classes Destroyed 8 | 2 4 1 1 Tunneler 5 | 4 . 1 . Hauler 2 | . 2 . . Operator 1 | . 1 . . Watcher 2 | . 2 . . Swarmer 3 | . 3 . . Grunt 5 | 1 2 2 . Sentry 1 | . . 1 . Assembled 6 | . . . 6 Best Kill Streak 6 | 3 4 1 6 Combat Bots Only 6 | 1 3 1 6 Max Kills in Single Turn 2 | 1 2 1 2 Gunslinging . | . . . . Exploded 2 | . . . 2 Melee . | . . . . Uniques/NPCs Destroyed . | . . . . Combat | -11 -10 -10 -10 -------- Run | Yrd Mat Min Exi Hostile Shots Fired 51 | 2 16 8 25 Missed 15 | 1 4 3 7 Damage Taken 774 | 12 113 64 585 Core 287 | . 12 11 264 Absorbed by Shields . | . . . . Core Remaining (%) 100 | 100 . . . Volleys Fired 57 | 12 28 12 5 Largest 2 | 2 2 2 1 Hottest 70 | 70 70 70 36 Shots Fired 110 | 24 55 25 6 Gun 105 | 24 55 25 1 Cannon . | . . . . Launcher 5 | . . . 5 Special . | . . . . Kinetic 54 | 12 28 13 1 Thermal 51 | 12 27 12 . Explosive 5 | . . . 5 Electromagnetic . | . . . . Robot Hit Streak 14 | 7 14 5 2 Robot Miss Streak 4 | 2 4 2 3 Penetration Max . | . . . . Secondary Targets 1 | . 1 . . Max Gunslinging Chain 1 | . 1 . . Shots Hit Robots 66 | 15 34 15 2 Core Hits 40 | 6 16 7 11 Critical Kills . | . . . . Critical Parts Destroyed . | . . . . Critical Strikes 5 | 1 3 1 . Burn 5 | 1 3 1 . Melee Attacks . | . . . . Impact . | . . . . Slashing . | . . . . Piercing . | . . . . Sneak Attacks . | . . . . Combat Hostiles . | . . . . Follow-up Attacks . | . . . . Damage Inflicted 1269 | 166 437 191 475 Guns 794 | 166 437 191 . Cannons . | . . . . Explosions 475 | . . . 475 Melee . | . . . . Ramming . | . . . . Kinetic 393 | 78 237 78 . Thermal 401 | 88 200 113 . Explosive 475 | . . . 475 Electromagnetic . | . . . . Impact . | . . . . Slashing . | . . . . Piercing . | . . . . Highest Corruption 6 | . 3 3 6 Average Corruption 3 | . 2 3 3 Corruption Purged . | . . . . Corruption Blocked . | . . . . Effects 24 | . 6 14 4 Message Errors 3 | . 1 2 . Matter Fused 2 | . . 2 . Heat Flow Errors 4 | . 2 2 . Energy Discharges 4 | . 1 2 1 Data Loss (minor) 8 | . 1 5 2 Misfires 3 | . 1 1 1 Overload Shots . | . . . . Overflow Damage 12 | . . . 12 Projectiles . | . . . . Explosions 12 | . . . 12 Melee . | . . . . Knockbacks . | . . . . Impact . | . . . . Kinetic . | . . . . Secondary . | . . . . Self-Inflicted Damage 111 | . . . 111 Shots 2 | . . . 2 Rammed . | . . . . Targets Rammed . | . . . . Kicked . | . . . . Crushed . | . . . . Highest Temperature 278 | 87 278 229 19 Average Temperature 43 | 38 41 56 13 Received Heat Transfer 120 | 6 30 24 60 Siege Activations . | . . . . Robots Corrupted . | . . . . Combat Hostiles . | . . . . Parts Fried . | . . . . Impact Corruptions . | . . . . Robots Melted . | . . . . Combat Hostiles . | . . . . Parts Melted 3 | . . 3 . Heat Transferred 1554 | 333 814 407 . Parts Sabotaged . | . . . . Parts Stolen . | . . . . Parts Stripped . | . . . . Power Chain Reactions . | . . . . Alert | -11 -10 -10 -10 ------- Run | Yrd Mat Min Exi Peak Influence 225 | 40 225 56 . Initial 26 | . 26 1 . Average 42 | 20 58 29 . Maximum Alert Level 1 | . 1 . . Low Security (%) 93 | 100 87 100 . Level 1 6 | . 12 . . Level 2 . | . . . . Level 3 . | . . . . Level 4 . | . . . . Level 5 . | . . . . High Security . | . . . . Max Security . | . . . . Squads Dispatched 2 | . 1 1 . Investigation 1 | . . 1 . Extermination . | . . . . Reinforcement 1 | . 1 . . Assault . | . . . . Garrison . | . . . . Intercept . | . . . . Searches Triggered . | . . . . Construction Impeded . | . . . . Haulers Reinforced . | . . . . Active Scanning Responses . | . . . . Cargo Convoy Interrupts . | . . . . Stealth | -11 -10 -10 -10 --------- Run | Yrd Mat Min Exi Distress Signals 1 | . 1 . . Communications Jammed . | . . . . Distress Signals . | . . . . Times Spotted 23 | 1 10 5 7 Peak Tracking Total 10 | 1 4 2 10 Tactical Retreats 1 | . 1 . . Traps | -11 -10 -10 -10 ------- Run | Yrd Mat Min Exi Traps Triggered 2 | . 2 . . Indirectly . | . . . . Trap Hack Attempts . | . . . . Triggered . | . . . . Disarmed . | . . . . Reprogrammed . | . . . . Reused . | . . . . Traps Extracted . | . . . . Installed . | . . . . Triggered . | . . . . Machines | -11 -10 -10 -10 ---------- Run | Yrd Mat Min Exi Machines Disabled 3 | . 1 . 2 Max in Single Turn 1 | . 1 . 1 Machines Repaired . | . . . . Machines Dismantled . | . . . . Machines Sabotaged . | . . . . Overloaded Fab Kills . | . . . . Hacking | -11 -10 -10 -10 --------- Run | Yrd Mat Min Exi Machines Accessed 4 | . 3 1 . Terminals 3 | . 3 . . Fabricators . | . . . . Repair Stations . | . . . . Recycling Units . | . . . . Scanalyzers . | . . . . Garrison Access . | . . . . Total Hacks 11 | . 10 1 . Successful 7 | . 6 1 . Failed 4 | . 4 . . Catastrophic 1 | . 1 . . Database Lockouts . | . . . . Manual . | . . . . Terminals 10 | . 10 . . Fabricators . | . . . . Repair Stations . | . . . . Recycling Units . | . . . . Scanalyzers . | . . . . Garrison Access . | . . . . Terminal Hacks 7 | . 6 1 . Record 5 | . 5 . . Prototype ID Bank 1 | . 1 . . Open Door 1 | . . 1 . Fabricator Hacks . | . . . . Repair Station Hacks . | . . . . Recycling Unit Hacks . | . . . . Scanalyzer . | . . . . Garrison Access Hacks . | . . . . Unauthorized Hacks . | . . . . Terminals . | . . . . Fabricators . | . . . . Repair Stations . | . . . . Recycling Units . | . . . . Scanalyzers . | . . . . Garrison Access . | . . . . Data Cores Recovered . | . . . . Used . | . . . . Hacking Detections 3 | . 3 . . Full Trace Events 1 | . 1 . . Feedback Events . | . . . . Feedback Blocked . | . . . . Robot Schematics Acquired . | . . . . Robots Built . | . . . . Authchips . | . . . . Time . | . . . . Total Robot Build Rating . | . . . . Part Schematics Acquired . | . . . . Parts Built . | . . . . Authchips . | . . . . Time . | . . . . Total Part Build Rating . | . . . . Parts Repaired . | . . . . Time . | . . . . Parts Recycled . | . . . . Recycled Matter . | . . . . Retrieved Matter . | . . . . Retrieved Components . | . . . . Parts Scanalyzed . | . . . . Part Schematics Acquired . | . . . . Parts Damaged . | . . . . Bothacking | -11 -10 -10 -10 ------------ Run | Yrd Mat Min Exi Used RIF Installer . | . . . . Robots Hacked . | . . . . Non-combat . | . . . . Combat . | . . . . Robot Hacks Applied . | . . . . Relay Couplers Released . | . . . . Fabnet Peak Effective % . | . . . . Robots Rewired . | . . . . Allies Hacked . | . . . . Hacks Repelled . | . . . . Allies | -11 -10 -10 -10 -------- Run | Yrd Mat Min Exi Total Allies . | . . . . Largest Group . | . . . . Highest-Rated Group . | . . . . Highest-Rated Ally . | . . . . Total Orders . | . . . . Ally Attacks . | . . . . Total Damage . | . . . . Kills . | . . . . Allies Corrupted . | . . . . Allies Melted . | . . . . Intel | -11 -10 -10 -10 ------- Run | Yrd Mat Min Exi Robot Analysis Total . | . . . . Derelict Logs Recovered . | . . . . Drone Launches . | . . . . Drone Recoveries . | . . . . Exploration | -11 -10 -10 -10 ------------- Run | Yrd Mat Min Exi Turns Passed 2241 | 247 1037 790 167 Spaces Moved 1119 | 155 499 385 80 Core 14 | 14 . . . Treads . | . . . . Legs 1105 | 141 499 385 80 Wheels . | . . . . Hover . | . . . . Flight . | . . . . Fastest Speed 50 | 50 120 190 190 Average Speed 163 | 113 153 190 190 Slowest Speed 260 | 120 190 190 260 Overloaded Moves . | . . . . Propulsion Burnouts . | . . . . Robots Hopped . | . . . . Cave-ins Triggered . | . . . . Exploration Rate (%) 45 | 9 61 73 37 Regions Visited 3 Branch Regions 2 Pre-discovered Areas . | . . . . Known Exits Taken 2 | . 1 1 . Unknown Exits Taken 1 | 1 . . . Scrap Searched 3 | . . 3 . Spaces Dug . | . . . . Terrain Destroyed 8 | . . . 8 Melee . | . . . . Projectile . | . . . . AOE 8 | . . . 8 Terrain Rammed . | . . . . Walls Destroyed . | . . . . Machines Disabled . | . . . . Actions | -11 -10 -10 -10 --------- Run | Yrd Mat Min Exi Total 1428 | 198 719 423 88 Wait 200 | 21 166 13 . Move 1116 | 154 498 384 80 Hop . | . . . . Pick Up 25 | 3 16 6 . Fast Attach 8 | 7 1 . . Attach 2 | . . . 2 Detach . | . . . . Swap 6 | 1 3 1 1 Drop 14 | . 7 7 . Fire 57 | 12 28 12 5 Melee . | . . . . Ram . | . . . . Kick . | . . . . Crush . | . . . . Escape Stasis . | . . . . Rewire . | . . . . Trap . | . . . . Miscellaneous . | . . . . Route ------- -11/Scrapyard -10/Materials (discovered 3 exits: *Mat / *Min x2) -10/Mines (discovered 3 exits: *Mat x2 / *Exi) -10/Exiles History --------- Turn | Location | Event 2 | -11/Scrapyard | Met Revision 17 98 | -11/Scrapyard | Discovered new exit (range 8) 248 | -11/Scrapyard | Entered Materials 306 | -10/Materials | Build established: Mutant 562 | -10/Materials | Discovered new exit (range 15) 581 | -10/Materials | Identified exit to Mines 678 | -10/Materials | Discovered new exit (range 16) 701 | -10/Materials | Identified exit to Materials 1268 | -10/Materials | Discovered exit to Mines (range 10) 1285 | -10/Materials | Entered Mines 1305 | -10/Mines | Met a Derelict bent on vengeance 1477 | -10/Mines | Met a Derelict shopkeep closing up shop 1584 | -10/Mines | Discovered exit to Materials (range 5) 1692 | -10/Mines | Discovered exit to Materials (range 8) 1701 | -10/Mines | Joined a pair of Derelicts in attacking an 0b10 outpost 1877 | -10/Mines | Received a Rocket Launcher from a helpful Derelict 2065 | -10/Mines | Deemed a non-threat by the Exiles lab entrance 2067 | -10/Mines | Discovered new exit (range 5) 2073 | -10/Mines | Identified exit to Exiles 2075 | -10/Mines | Entered Exiles 2119 | -10/Exiles | Met 8R-AWN 2153 | -10/Exiles | Met EX-HEX 2208 | -10/Exiles | Met EX-BIN 2210 | -10/Exiles | Attacked by the Exiles 2236 | -10/Exiles | Core integrity fell below 50% 2241 | -10/Exiles | Core integrity fell below 20% 2242 | -10/Exiles | Destroyed by DAS Turret with DAS Cannon Last Messages --------------- 02223_ Knocked back. 02223_ Destroyed Asb. F-torch. 02223_ as-63320 destroyed. 02223_ as-73549 destroyed. 02223_ Machine disabled. 02227_ Signal Interpreter destroyed. 02227_ System corrupted by crushing effect (+3). 02228_ as-00241 destroyed. 02230_ as-41707 destroyed. 02230_ as-69777 destroyed. 02231_ Lgt. Deuterium Engine destroyed. 02232_ as-50691 destroyed. 02232_ Machine disabled. 02235_ Missile Launcher destroyed. 02236_ Aluminum Leg destroyed. 02237_ Penetrated by HV Slug. 02238_ Med. Laser destroyed. 02241_ Penetrated by HV Slug. 02241_ Critical hit (Destroy). 02241_ Aluminum Leg destroyed. Map ----- +----------------------------------------------------+ | ?????????????????????????????????????????????????? | | ?????????????????????????????????????????????????? | | ???????????????????????????????? ?????????????? | | ??????????????????????????????# ?????????????? | | ??????????????????????????????# #????????????? | | ??????????????????????????????# ###"" "??????? | | ??????????????????????????????" ""?????? | | ?????????????????????????????#" ""????? | | ?????????????????????????????#" ""????? | | ?????????????????????????????#" ""????? | | ?????????????????????????????#" ""????? | | ??????????????????????????????" "?????? | | ??????????????????????????????# "?????? | | ??????????????????????????????# ??????? | | ??????????????????????????????#" "X"???????? | | ??????????????????????????????#" """???????? | | ??????????????????????????????#" """?????????? | | ?????????????????????????????##" ###??????????? | | ????????????????????????????##" #??????????? | | ????????????????? ?##??######"" #??????????? | | ????????????#?#X# #"###"""" #??????????? | | ??????????? """""" ##??######## | | ??????????? "" "" ####""""""" | | ?????????? " " % % " """ " | | ?????????? % "" | | ?????????? @ " | | ?????????? % | | ?????????? | | ??????????? | | ???????????" c """""" | | ???????????? ######""" | | ???????????? ""##????#####" | | ???????????? """##?????????## " | | ????????????? """#????????????#"""" | | ????????????? ""?????????????#"" | | ?????????????? ????????????????"""" | | ?????????????? ???????????????"" | | ???????????????? ???????????????" | | ?????????????????????????????????? | | ?????????????????????????????????? | | ?????????????????????????????????? " | | ?????????????????????????????????? "" """ | | ??????????????????????????????????#?""" " " ""#" | | ?????????????????????????????????????###""" """##" | | ???????????????????????????????????????###""""??## | | ?????????????????????????????????????????###?????? | | ?????????????????????????????????????????????????? | | ?????????????????????????????????????????????????? | | ?????????????????????????????????????????????????? | | ?????????????????????????????????????????????????? | +----------------------------------------------------+ Best States ------------- Heat Dissipation 25 Energy Generation 14 Energy Capacity 250 Matter Stores 300 Matter Capacity 300 Sight Range 16 Terrain Scan Range 16 Terrain Scan Density 10 Evasion (%) 55 Item Schematics ----------------- None Robot Schematics ------------------ None Fabricated ------------ Nothing Alien Tech Used ----------------- None Achievements -------------- None Challenges ------------ None Game ------ Seed BlastMicrowarpStick Manual? 0 Play Time 00:28:17 Cumulative 5.7 hours Start 2024.09.01 @ 16:04:27 End 2024.09.01 @ 16:33:06 Sessions 1 Manual Loads 0 Difficulty Rogue Special Mode None Game No. 2 Rogue 2 Adventurer 0 Explorer 0 Win Type - Total 0 Types 0/0/0/0/0/0/0/0/0 Lore% 6 Gallery% 6 Achievement% 10 Wizard Run 0 Options --------- Layout 0 ASCII 0 Keyboard 0 Movement Vi Keybinds 0 Fullscreen 2 Font 24/Smallcaps Map View 113x50 Zoom Use 0% Tactical HUD 1 Map Filters NONE Filters NONE Steam 0 RUN: 28bb9e61-a190-415b-992c-8946b0b3d930